bitfinex/quotes_SOLUSD_20260211
["timestamp","ask_amount","ask_price","bid_price","bid_amount"]
[1770838768494,3.36826971,79.976,79.95,4.81647879]
[1770838769095,56.24,79.978,79.94,4.81647879]
[1770838769096,3.36826971,79.974,79.94,4.81647879]
[1770838769493,3.36826971,79.974,79.928,48.74]
[1770838769494,3.36826971,79.969,79.93,4.81647879]
[1770838770116,3.36826971,79.967,79.931,12.51079055]
[1770838770294,3.36826971,79.967,79.95,4.81647879]
[1770838770611,3.36826971,79.976,79.95,4.81647879]
[1770838771004,3.36826971,79.974,79.95,4.81647879]
[1770838772234,3.36826971,79.972,79.95,4.81647879]
[1770838772396,3.36826971,79.972,79.946,12.50840429]
[1770838772591,3.36826971,79.972,79.95,4.81647879]
[1770838773713,3.36826971,79.972,79.94,4.81647879]
[1770838773901,3.36826971,79.972,79.941,12.50922555]
[1770838774320,3.36826971,79.972,79.95,4.81647879]
[1770838776812,12.50453289,79.971,79.95,4.81647879]
[1770838777115,3.36826971,79.972,79.951,12.50766094]
[1770838778305,3.36826971,79.97,79.94,12.50926704]
[1770838778516,3.36826971,79.97,79.94,17.32574583]
[1770838779809,3.36826971,79.97,79.95,4.81647879]
[1770838780015,3.36826971,79.97,79.94,17.32574583]
[1770838780309,3.36826971,79.968,79.94,17.32574583]
[1770838780507,3.36826971,79.968,79.94,4.81647879]
[1770838781715,3.36826971,79.959,79.92,4.81647879]
[1770838782028,3.36826971,79.957,79.92,4.81647879]
[1770838782397,3.36826971,79.955,79.92,4.81647879]
[1770838782798,3.36826971,79.949,79.908,12.51439155]
[1770838783004,3.36826971,79.949,79.91,4.81647879]
[1770838784029,3.36826971,79.944,79.91,4.81647879]
[1770838784914,3.36826971,79.94,79.911,12.51392173]
[1770838785420,3.36826971,79.94,79.92,4.81647879]
[1770838785921,30.0,79.938,79.92,17.32894379]
[1770838786113,33.36826971,79.938,79.92,17.32894379]
[1770838786612,30.0,79.938,79.92,17.32894379]
[1770838786814,33.36826971,79.938,79.92,17.32894379]
[1770838786994,3.36826971,79.936,79.901,48.64]
[1770838787196,3.36826971,79.936,79.88,4.81647879]
[1770838787197,3.36826971,79.929,79.88,4.81647879]
[1770838787399,3.36826971,79.929,79.853,50.09150958]
[1770838787400,3.36826971,79.929,79.89,4.81647879]
[1770838787920,3.36826971,79.919,79.88,4.81647879]
[1770838788316,56.38,79.936,79.88,4.81647879]
[1770838788317,3.36826971,79.917,79.881,12.51862144]
[1770838789298,3.36826971,79.915,79.881,12.51862144]
[1770838789500,3.36826971,79.915,79.881,43.81517506]
[1770838790222,33.36826971,79.914,79.881,43.81517506]
[1770838791615,3.36826971,79.913,79.881,43.81517506]
[1770838792719,3.36826971,79.926,79.89,4.81647879]
[1770838792902,3.36826971,79.909,79.881,12.51862144]
[1770838793105,3.36826971,79.909,79.87,53.49647879]
[1770838793308,3.36826971,79.899,79.87,48.68]
[1770838793520,3.36826971,79.899,79.861,12.52175655]
[1770838793722,3.36826971,79.899,79.87,4.81647879]
[1770838794025,3.36826971,79.899,79.861,61.20175655]
[1770838794026,3.36826971,79.899,79.861,92.50614793]
[1770838794212,30.0,79.898,79.861,43.82614793]
[1770838794408,3.36826971,79.897,79.861,43.82614793]
[1770838794922,3.36826971,79.895,79.861,43.82614793]
[1770838795508,3.36826971,79.889,79.85,4.81647879]
[1770838795713,3.36826971,79.889,79.848,12.52379521]
[1770838796603,3.36826971,79.884,79.848,12.52379521]
[1770838797005,3.36826971,79.884,79.85,4.81647879]
[1770838797717,3.36826971,79.881,79.848,12.52379521]
[1770838798119,30.0,79.882,79.848,12.52379521]
[1770838798120,3.36826971,79.879,79.848,12.52379521]
[1770838798425,3.36826971,79.879,79.844,12.52434636]
[1770838798631,3.36826971,79.876,79.851,12.52332469]
[1770838799607,30.0,79.874,79.851,12.52332469]
[1770838800719,3.36826971,79.873,79.841,43.83712628]
[1770838800916,3.36826971,79.873,79.85,4.81647879]
[1770838802246,3.36826971,79.873,79.841,43.83712628]
[1770838802527,30.0,79.874,79.85,4.81647879]
[1770838802731,30.0,79.874,79.841,43.83712628]
[1770838802732,3.36826971,79.88,79.841,12.52489322]
[1770838803039,3.36826971,79.879,79.841,43.83712628]
[1770838803543,3.36826971,79.869,79.835,12.52568409]
[1770838804710,3.36826971,79.865,79.831,12.52646215]
[1770838805108,3.36826971,79.887,79.85,4.81647879]
[1770838805309,3.36826971,79.887,79.834,4.61729252]
[1770838805532,3.36826971,79.879,79.84,4.81647879]
[1770838806244,3.36826971,79.892,79.86,4.81647879]
[1770838808123,3.36826971,79.914,79.88,4.81647879]
[1770838808523,3.36826971,79.914,79.89,4.81647879]
[1770838809831,56.58,79.925,79.9,4.81647879]
[1770838810029,3.36826971,79.923,79.891,12.51705448]
[1770838810536,56.58,79.925,79.886,12.51776116]
[1770838810537,3.36826971,79.919,79.886,12.51776116]
[1770838811130,3.36826971,79.919,79.881,48.8]
[1770838811537,3.36826971,79.919,79.882,12.51846473]
[1770838814548,3.36826971,79.917,79.89,4.81647879]
[1770838814926,3.36826971,79.917,79.9,4.81647879]
[1770838816033,3.36826971,79.933,79.91,4.81647879]
[1770838816439,3.36826971,79.933,79.911,12.51392173]
[1770838817835,3.36826971,79.94,79.92,4.81647879]
[1770838818132,3.36826971,79.94,79.911,12.51392173]
[1770838819747,3.36826971,79.938,79.92,4.81647879]
[1770838819939,3.36826971,79.938,79.91,4.81647879]
[1770838821048,3.36826971,79.947,79.92,4.81647879]
[1770838821240,3.36826971,79.962,79.94,4.81647879]
[1770838821624,3.36826971,79.962,79.941,12.50922555]
[1770838822034,3.36826971,79.962,79.95,4.81647879]
[1770838822247,0.1,79.98,79.95,4.81647879]
[1770838822461,0.1,79.98,79.97,4.81647879]
[1770838823533,0.1,79.99,79.98,4.81647879]
[1770838824249,0.1,79.99,79.97,4.81647879]
[1770838825549,0.1,79.99,79.961,12.5060426]
[1770838825550,0.1,80.01,79.981,0.36101207]
[1770838825753,2.85920358,80.012,80.0,4.81647879]
[1770838826256,2.85920358,80.012,79.964,50.02234767]
[1770838826257,12.49828148,80.011,79.98,4.81647879]
[1770838826557,2.85920358,79.999,79.95,48.82]
[1770838827042,2.85920358,79.999,79.96,4.81136808]
[1770838828057,2.68611756,79.997,79.96,4.81136808]
[1770838828633,2.68611756,79.989,79.95,4.81136808]
[1770838829337,2.68611756,79.979,79.948,12.50812802]
[1770838829551,2.68611756,79.979,79.95,4.81136808]
[1770838830164,2.68611756,79.977,79.948,12.50812802]
[1770838831270,2.68611756,79.975,79.941,12.50922555]
[1770838832167,4.81136808,79.97,79.932,48.78]
[1770838832465,2.68611756,79.959,79.924,12.51188574]
[1770838833341,2.68611756,79.957,79.92,4.81136808]
[1770838833546,2.68611756,79.949,79.915,12.51329537]
[1770838834464,2.68611756,79.949,79.911,12.51388376]
[1770838835252,2.68611756,79.939,79.901,0.23665414]
[1770838835567,56.58,79.948,79.921,0.23665414]
[1770838835741,2.68611756,79.954,79.921,0.23665414]
[1770838835942,2.68611756,79.954,79.931,0.22612393]
[1770838836342,2.68611756,79.97,79.931,0.22612393]
[1770838836544,2.68611756,79.97,79.941,0.22612393]
[1770838837164,15.19080681,79.97,79.94,4.81136808]
[1770838837353,2.68611756,79.969,79.933,0.21571113]
[1770838837552,12.505002,79.968,79.94,4.81136808]
[1770838837760,2.68611756,79.967,79.934,12.51032101]
[1770838839775,2.68611756,79.965,79.934,12.51032101]
[1770838840695,2.68611756,79.992,79.96,4.81136808]
[1770838840847,2.68611756,79.999,79.98,4.81136808]
[1770838841169,2.68611756,79.999,79.97,4.81136808]
[1770838841366,2.68611756,79.999,79.963,0.17522119]
[1770838841874,2.68611756,79.997,79.963,0.17522119]
[1770838842372,2.68611756,79.997,79.961,12.50609672]
[1770838843252,2.68611756,79.989,79.956,12.50672878]
[1770838843446,2.68611756,79.989,79.95,4.81136808]
[1770838843668,2.68611756,79.979,79.949,12.50787119]
[1770838844770,2.68611756,79.977,79.944,48.72]
[1770838844969,43.76203455,79.978,79.939,12.50941534]
[1770838844970,2.68611756,79.969,79.939,12.50941534]
[1770838845552,2.68611756,79.969,79.929,12.51095799]
[1770838845755,2.68611756,80.0,79.961,0.12724178]
[1770838846059,2.68611756,80.0,79.97,12.89507024]
[1770838847164,15.18617846,80.0,79.971,12.50453289]
[1770838847363,2.68611756,79.999,79.971,12.50453289]
[1770838848379,2.68611756,80.012,79.99,12.89507024]
[1770838848559,2.68611756,80.02,80.0,12.89507024]
[1770838849069,2.68611756,80.018,79.99,13.00389116]
[1770838849268,13.09507024,80.03,79.98,25.39819602]
[1770838849269,2.68611756,80.016,79.98,25.39819602]
[1770838850454,12.49765668,80.015,79.98,25.39819602]
[1770838850679,2.68611756,80.014,79.98,12.89507024]
[1770838850973,2.68611756,80.009,79.978,48.74]
[1770838851177,2.68611756,79.999,79.955,12.50700274]
[1770838851983,2.68611756,79.989,79.955,12.50700274]
[1770838852456,12.50187528,79.988,79.951,12.50766094]
[1770838852662,2.68611756,79.987,79.951,12.50766094]
[1770838853380,2.68611756,79.987,79.96,12.89507024]
[1770838854277,2.68611756,79.987,79.946,12.50836097]
[1770838854483,2.68611756,79.987,79.95,12.89507024]
[1770838854874,2.68611756,79.985,79.951,12.50766094]
[1770838855360,2.68611756,79.985,79.952,0.03911149]
[1770838857075,2.68611756,79.985,79.96,12.89507024]
[1770838858078,12.50218788,79.986,79.96,12.89507024]
[1770838858290,12.50162127,79.99,79.96,12.89507024]
[1770838858584,2.68611756,79.989,79.96,12.89507024]
[1770838859497,2.68611756,79.987,79.96,12.89507024]
[1770838859665,2.68611756,79.987,79.942,12.50906907]
[1770838859866,2.68611756,79.987,79.95,12.89507024]
[1770838860484,2.68611756,79.987,79.92,12.89507024]
[1770838860485,2.68611756,79.979,79.885,50.07145029]
[1770838860792,2.68611756,79.959,79.92,12.89507024]
[1770838861295,2.68611756,79.949,79.91,12.89507024]
[1770838861768,2.68611756,79.939,79.9,12.89507024]
[1770838862104,2.68611756,79.939,79.897,12.51596203]
[1770838862387,56.44,79.938,79.9,12.89507024]
[1770838862585,2.68611756,79.929,79.89,12.89507024]
[1770838862766,30.0,79.925,79.89,12.89507024]
[1770838862962,2.68611756,79.924,79.89,12.89507024]
[1770838863599,2.68611756,79.924,79.889,12.51722989]
[1770838863767,15.19878663,79.919,79.885,12.51799461]
[1770838863974,2.68611756,79.918,79.885,12.51799461]
[1770838864609,2.68611756,79.909,79.87,12.89507024]
[1770838864884,2.68611756,79.905,79.87,12.89507024]
[1770838865289,30.0,79.906,79.851,12.52332469]
[1770838865290,30.0,79.906,79.89,12.89507024]
[1770838865869,2.68611756,79.917,79.89,12.89507024]
[1770838865870,30.0,79.902,79.891,12.51705448]
[1770838867014,30.0,79.902,79.89,12.89507024]
[1770838867173,32.68611756,79.902,79.87,12.89507024]
[1770838867870,30.0,79.902,79.89,12.89507024]
[1770838868285,2.68611756,79.926,79.89,12.89507024]
[1770838868476,2.68611756,79.926,79.867,4.61729252]
[1770838868477,2.68611756,79.934,79.9,12.89507024]
[1770838868670,2.68611756,79.949,79.91,12.89507024]
[1770838868871,2.68611756,79.949,79.92,12.89507024]
[1770838869087,2.68611756,79.949,79.91,12.89507024]
[1770838869678,2.68611756,79.949,79.92,12.89507024]
[1770838869886,2.68611756,79.947,79.92,12.89507024]
[1770838870086,2.68611756,79.947,79.91,12.89507024]
[1770838870788,2.68611756,79.947,79.92,12.89507024]
[1770838871180,2.68611756,79.945,79.91,12.89507024]
[1770838872273,2.68611756,79.945,79.902,43.80365948]
[1770838872892,2.68611756,79.945,79.91,12.89507024]
[1770838873599,2.68611756,79.959,79.92,12.89507024]
[1770838873775,2.68611756,79.958,79.92,12.89507024]
[1770838875286,2.68611756,79.939,79.901,12.51548791]
[1770838875686,5.36086188,79.957,79.901,12.51548791]
[1770838875687,2.68611756,79.937,79.901,12.51548791]
[1770838876091,2.68611756,79.937,79.91,12.89507024]
[1770838876289,2.68611756,79.941,79.91,12.89507024]
[1770838876676,2.68611756,79.939,79.901,12.51548791]
[1770838877682,2.68611756,79.937,79.901,12.51548791]
[1770838879589,2.68611756,79.935,79.901,12.51548791]
[1770838880192,2.68611756,79.935,79.901,43.8042077]
[1770838880496,2.68611756,79.935,79.91,12.89507024]
[1770838880700,2.68611756,79.935,79.901,43.8042077]
[1770838881500,2.68611756,79.935,79.901,12.51548791]
[1770838881683,2.68611756,79.933,79.901,12.51548791]
[1770838881885,56.5,79.941,79.91,12.89507024]
[1770838882084,2.68611756,79.94,79.91,12.89507024]
[1770838882990,2.68611756,79.939,79.901,43.8042077]
[1770838883200,2.68611756,79.939,79.901,12.51548791]
[1770838883489,56.56,79.942,79.91,12.89507024]
[1770838883690,49.99858471,80.003,79.901,43.8042077]
[1770838883691,2.68611756,79.971,79.93,12.89507024]
[1770838883891,49.98831101,80.019,79.95,12.89507024]
[1770838883892,2.68611756,79.981,79.95,12.89507024]
[1770838884205,2.68611756,79.979,79.93,12.89507024]
[1770838884393,2.68611756,79.969,79.93,12.89507024]
[1770838885000,2.68611756,79.98,79.94,12.89507024]
[1770838885186,12.50219456,79.986,79.96,12.89507024]
[1770838885504,15.18783654,79.989,79.96,12.89507024]
[1770838885706,15.18783654,79.989,79.96,25.40124458]
[1770838886006,15.18783654,79.989,79.97,12.89507024]
[1770838886305,2.68611756,79.988,79.96,12.89507024]
[1770838886485,2.68611756,79.988,79.946,48.8]
[1770838886486,2.68611756,79.988,79.95,12.89507024]
[1770838886801,2.68611756,79.979,79.946,48.8]
[1770838887000,43.75601644,79.989,79.93,12.89507024]
[1770838887001,2.68611756,79.969,79.93,12.89507024]
[1770838887384,2.68611756,79.959,79.92,12.89507024]
[1770838887893,2.68611756,79.949,79.911,12.51392173]
[1770838888489,2.68611756,79.949,79.92,12.89507024]
[1770838888897,2.68611756,79.949,79.92,12.90153974]
[1770838889086,2.68611756,79.947,79.914,12.51335345]
[1770838889613,2.68611756,79.947,79.91,12.90153974]
[1770838889787,2.68611756,79.946,79.908,12.51438123]
[1770838889983,2.68611756,79.939,79.9,12.90153974]
[1770838890292,2.68611756,79.929,79.89,12.51714609]
[1770838890508,2.68611756,79.929,79.9,12.90153974]
[1770838891104,2.68611756,79.927,79.9,12.90153974]
[1770838891716,2.68611756,79.927,79.901,12.51548791]
[1770838891918,2.68611756,79.927,79.9,12.90153974]
[1770838892412,2.68611756,79.927,79.9,25.4171815]
[1770838892589,2.68611756,79.927,79.9,12.90153974]
[1770838892786,2.68611756,79.927,79.896,12.51620136]
[1770838893386,2.68611756,79.925,79.9,12.90153974]
[1770838893598,2.68611756,79.925,79.89,12.90153974]
[1770838894208,2.68611756,79.933,79.879,48.78]
[1770838894514,2.68611756,79.933,79.9,12.90153974]
[1770838895428,12.50960138,79.939,79.91,12.90153974]
[1770838896111,2.68611756,79.938,79.9,12.90153974]
[1770838896422,2.68611756,79.938,79.91,12.90153974]
[1770838896716,2.68611756,79.938,79.902,12.51524503]
[1770838896928,2.68611756,79.938,79.91,12.90153974]
[1770838897093,2.68611756,79.938,79.902,12.51524503]
[1770838898202,2.68611756,79.936,79.902,12.51524503]
[1770838898413,12.90153974,79.94,79.91,12.90153974]
[1770838898414,2.68611756,79.94,79.91,12.90153974]
[1770838900717,2.68611756,79.938,79.91,12.90153974]
[1770838901422,2.68611756,79.919,79.858,4.61729252]
[1770838901610,2.68611756,79.919,79.89,12.90153974]
[1770838902006,2.68611756,79.919,79.88,12.90153974]
[1770838902233,2.68611756,79.919,79.89,12.90153974]
[1770838902732,56.6,79.95,79.891,12.51705448]
[1770838902733,2.68611756,79.924,79.891,12.51705448]
[1770838902908,2.68611756,79.948,79.91,12.90153974]
[1770838904607,2.68611756,79.946,79.91,12.90153974]
[1770838905241,2.68611756,79.929,79.892,12.51689781]
[1770838905524,2.68611756,79.929,79.89,12.90153974]
[1770838905731,2.68611756,79.929,79.9,12.90153974]
[1770838906504,2.68611756,79.929,79.89,12.90153974]
[1770838906721,2.68611756,79.919,79.881,12.51862144]
[1770838907022,2.68611756,79.899,79.86,12.90153974]
[1770838907346,2.68611756,79.889,79.851,12.52332469]
[1770838907516,2.68611756,79.889,79.86,12.90153974]
[1770838907714,2.68611756,79.889,79.851,12.52332469]
[1770838908028,2.68611756,79.889,79.86,12.90153974]
[1770838908613,2.68611756,79.887,79.86,25.4234106]
[1770838909222,32.68611756,79.885,79.86,25.4234106]
[1770838909733,2.68611756,79.884,79.86,25.4234106]
[1770838910103,30.0,79.881,79.86,25.4234106]
[1770838910911,30.0,79.881,79.87,12.90153974]
[1770838911304,2.68611756,79.908,79.87,12.90153974]
[1770838911504,2.68611756,79.906,79.88,12.90153974]
[1770838913024,2.68611756,79.904,79.87,12.90153974]
[1770838914529,1.97192035,79.904,79.87,12.90153974]
[1770838914712,12.90153974,79.91,79.871,12.5201888]
[1770838914713,12.51517464,79.903,79.871,12.5201888]
[1770838915134,12.51460757,79.907,79.872,0.38362131]
[1770838915333,12.51460757,79.907,79.88,12.90153974]
[1770838916536,2.41973952,79.906,79.88,12.90153974]
[1770838916733,2.41973952,79.904,79.873,12.5198753]
[1770838917744,2.41973952,79.902,79.873,12.5198753]
[1770838917920,2.41973952,79.902,79.88,12.90153974]
[1770838918318,12.51465803,79.907,79.881,0.37347287]
[1770838919020,14.93439755,79.907,79.881,0.37347287]
[1770838920248,56.7,79.946,79.891,0.36686672]
[1770838920541,2.41973952,79.959,79.93,12.90153974]
[1770838920723,2.41973952,79.968,79.94,12.90153974]
[1770838920914,12.50527305,79.967,79.94,12.90153974]
[1770838921719,2.41973952,79.968,79.94,12.90153974]
[1770838921919,2.41973952,79.968,79.907,4.61729252]
[1770838921920,2.41973952,79.968,79.95,12.90153974]
[1770838922120,12.50640953,79.959,79.913,0.36042694]
[1770838922320,2.41973952,79.958,79.922,0.36042694]
[1770838922526,2.41973952,79.958,79.93,12.90153974]
[1770838923124,0.1,79.96,79.95,12.90153974]
[1770838923424,2.41973952,79.972,79.945,0.25725966]
[1770838923825,2.41973952,79.98,79.951,0.25420232]
[1770838924039,2.41973952,79.98,79.941,0.25420232]
[1770838924541,2.41973952,79.978,79.942,12.50906907]
[1770838925532,2.41973952,79.969,79.936,12.50995243]
[1770838926725,2.41973952,79.967,79.931,12.51079055]
[1770838927833,2.41973952,79.959,79.909,0.24241599]
[1770838928041,2.41973952,79.959,79.92,12.90153974]
[1770838928740,2.41973952,79.957,79.921,12.51235595]
[1770838929931,56.76,79.962,79.94,12.90153974]
[1770838930934,56.76,79.962,79.939,2.36513964]
[1770838931236,12.50588271,79.963,79.931,2.36513964]
[1770838931932,2.41973952,79.962,79.932,12.51063403]
[1770838932130,2.41973952,79.962,79.931,2.36513964]
[1770838932131,2.41973952,79.96,79.922,2.36513964]
[1770838932353,2.41973952,79.959,79.923,12.51204284]
[1770838933144,56.76,79.958,79.923,12.51204284]
[1770838933350,2.41973952,79.955,79.916,14.87827843]
[1770838933876,2.41973952,79.955,79.921,2.36513964]
[1770838934151,2.41973952,79.964,79.931,2.36513964]
[1770838934455,2.41973952,79.963,79.931,2.36513964]
[1770838935271,2.41973952,79.972,79.941,2.36513964]
[1770838935562,2.41973952,79.986,79.951,2.36513964]
[1770838936046,2.41973952,79.986,79.961,2.36513964]
[1770838936351,2.41973952,79.993,79.961,2.36513964]
[1770838937732,2.41973952,79.991,79.962,12.50594032]
[1770838939655,2.41973952,79.989,79.954,43.77489674]
[1770838939964,2.41973952,79.989,79.954,12.50719163]
[1770838940759,2.28060659,79.979,79.947,12.50816014]
[1770838941849,2.28060659,79.977,79.947,12.50816014]
[1770838943369,2.28060659,79.977,79.943,2.32747333]
[1770838943949,2.28060659,79.975,79.944,12.50875612]
[1770838945477,2.28060659,79.973,79.944,12.50875612]
[1770838945669,2.28060659,79.973,79.945,2.32747333]
[1770838947059,2.28060659,79.973,79.93,48.42]
[1770838947060,2.28060659,79.973,79.937,12.50969594]
[1770838947266,43.76422337,79.974,79.925,31.27897768]
[1770838947267,2.32108376,79.969,79.933,12.51043065]
[1770838947469,2.32108376,79.966,79.928,12.51126013]
[1770838948163,2.32108376,79.966,79.928,14.84980343]
[1770838948365,2.32108376,79.966,79.931,2.3385433]
[1770838948684,2.32108376,79.979,79.94,12.90153974]
[1770838948871,2.32108376,79.979,79.941,2.3385433]
[1770838949178,2.32108376,79.979,79.883,5.36086188]
[1770838949179,2.32108376,79.969,79.925,2.3385433]
[1770838949369,2.32108376,79.959,79.921,2.3385433]
[1770838949567,2.32108376,79.957,79.923,2.3385433]
[1770838951657,2.32108376,79.949,79.917,12.51287952]
[1770838953064,2.32108376,79.949,79.921,30.0]
[1770838953465,2.32108376,79.949,79.917,12.51287952]
[1770838953768,2.32108376,79.947,79.911,12.51392173]
[1770838954079,2.32108376,79.947,79.911,14.85246503]
[1770838954585,2.32108376,79.947,79.912,2.3385433]
[1770838955667,2.32108376,79.945,79.913,12.51360854]
[1770838956064,2.32108376,79.945,79.908,12.51427181]
[1770838956267,12.50786846,79.95,79.921,2.3385433]
[1770838956569,14.82895222,79.95,79.921,2.3385433]
[1770838956767,2.32108376,79.993,79.941,2.3385433]
[1770838956966,2.32108376,79.989,79.96,12.89886916]
[1770838957167,2.32108376,79.989,79.959,2.3385433]
[1770838957763,2.32108376,79.987,79.952,2.3385433]
[1770838958164,2.32108376,79.987,79.95,12.89886916]
[1770838958479,2.32108376,79.986,79.95,12.89886916]
[1770838959280,2.32108376,79.986,79.951,12.50766094]
[1770838959867,2.32108376,79.984,79.95,12.89886916]
[1770838960267,2.32108376,79.984,79.96,12.89886916]
[1770838960591,2.32108376,79.984,79.952,2.3385433]
[1770838960758,12.89886916,79.98,79.946,2.3385433]
[1770838960963,2.32108376,79.979,79.94,12.89886916]
[1770838961959,2.32108376,79.977,79.94,12.89886916]
[1770838962390,2.32108376,79.977,79.938,12.5096659]
[1770838962586,2.32108376,79.976,79.94,12.89886916]
[1770838962789,2.32108376,79.975,79.94,12.89886916]
[1770838962969,2.32108376,79.973,79.94,12.89886916]
[1770838963368,56.94,79.974,79.94,12.89886916]
[1770838963369,2.32108376,79.971,79.94,12.89886916]
[1770838963572,2.32108376,79.971,79.941,12.50922555]
[1770838964679,2.32108376,79.969,79.937,12.5098036]
[1770838965685,12.505002,79.968,79.94,12.89886916]
[1770838965894,2.32108376,79.967,79.94,25.40819707]
[1770838966272,2.32108376,79.967,79.941,2.3385433]
[1770838966774,56.94,79.972,79.951,2.3385433]
[1770838966974,56.94,79.972,79.95,12.89886916]
[1770838966975,2.32108376,79.971,79.95,12.89886916]
[1770838967976,2.32108376,79.971,79.951,12.50766094]
[1770838968174,2.32108376,79.971,79.95,12.89886916]
[1770838968175,2.32108376,79.971,79.95,25.4066739]
[1770838968574,2.32108376,79.971,79.95,12.50780474]
[1770838970400,2.32108376,79.971,79.945,2.3385433]
[1770838970600,12.50062503,79.996,79.961,2.35419426]
[1770838970775,12.50062503,79.996,79.971,2.35419426]
[1770838971091,14.86645956,79.996,79.971,2.35419426]
[1770838971297,2.36583453,80.003,79.971,2.35419426]
[1770838971494,2.46583453,80.02,79.981,2.35419426]
[1770838971683,2.46583453,80.02,79.957,4.61729252]
[1770838971684,0.1,80.02,79.991,2.35419426]
[1770838971891,12.5968873,80.02,80.0,12.89886916]
[1770838972091,0.1,80.02,80.0,12.89886916]
[1770838972288,0.1,80.02,79.99,12.89886916]
[1770838972289,2.36583453,80.018,79.99,12.89886916]
[1770838972607,2.36583453,80.065,80.013,2.05388674]
[1770838972784,2.36583453,80.064,80.05,12.89886916]
[1770838973096,2.36583453,80.058,80.02,12.89886916]
[1770838973395,2.36583453,80.058,80.03,12.89886916]
[1770838973600,2.36583453,80.058,80.031,1.85185872]
[1770838974188,2.36583453,80.058,79.998,1.85004653]
[1770838974380,2.36583453,80.056,80.021,12.49671961]
[1770838974923,0.2,80.06,80.032,1.84821466]
[1770838975400,2.36583453,80.059,80.032,1.84821466]
[1770838975571,0.2,80.06,80.05,12.89886916]
[1770838975773,0.2,80.06,80.04,12.89886916]
[1770838975985,2.56583453,80.06,80.04,12.89886916]
[1770838976598,0.2,80.06,80.05,12.89886916]
[1770838976800,0.1,80.07,80.051,1.6446155]
[1770838976994,0.1,80.07,80.06,12.89886916]
[1770838978198,2.36583453,80.087,80.06,12.89886916]
[1770838978398,2.36583453,80.087,80.07,12.89886916]
[1770838978583,2.36583453,80.085,80.06,12.89886916]
[1770838979491,12.99886916,80.1,80.04,12.89886916]
[1770838979492,2.36583453,80.083,80.04,12.89886916]
[1770838979692,2.36583453,80.079,80.04,12.89886916]
[1770838979890,2.36583453,80.077,80.04,12.89886916]
[1770838980903,12.48720061,80.082,80.06,12.89886916]
[1770838981101,2.36583453,80.081,80.06,12.89886916]
[1770838981306,2.36583453,80.081,80.051,1.5385173]
[1770838981694,2.36583453,80.081,80.05,12.89886916]
[1770838981889,2.36583453,80.081,80.027,1.53707114]
[1770838982203,43.70520215,80.082,80.026,43.73578585]
[1770838982204,2.36583453,80.079,80.04,12.89886916]
[1770838982888,2.36583453,80.077,80.041,12.49359703]
[1770838983205,2.36583453,80.077,80.05,12.89886916]
[1770838983591,2.36583453,80.077,80.041,12.49359703]
[1770838983792,2.36583453,80.077,80.04,12.89886916]
[1770838984815,2.36583453,80.069,80.03,14.43304084]
[1770838985111,2.36583453,80.069,80.02,48.48]
[1770838985112,2.36583453,80.069,80.04,12.89886916]
[1770838985285,12.48813627,80.076,80.05,12.89886916]
[1770838985601,14.8539708,80.076,80.05,12.89886916]
[1770838985798,57.04,80.08,80.06,12.89886916]
[1770838986007,50.19259283,80.14,80.071,1.53125726]
[1770838986008,2.36583453,80.113,80.071,1.53125726]
[1770838986302,2.36583453,80.106,80.09,12.89886916]
[1770838986507,0.2,80.11,80.09,12.89886916]
[1770838986713,0.2,80.11,80.1,12.89886916]
[1770838986885,0.2,80.11,80.086,12.48649166]
[1770838987183,0.2,80.11,80.057,4.61729252]
[1770838987184,2.36583453,80.109,80.09,12.89886916]
[1770838987591,0.2,80.11,80.09,12.89886916]
[1770838987806,2.36583453,80.109,80.09,12.89886916]
[1770838988000,2.36583453,80.108,80.08,12.89886916]
[1770838989106,0.2,80.11,80.081,12.48735655]
[1770838989107,2.36583453,80.106,80.081,12.48735655]
[1770838989793,2.36583453,80.106,80.07,12.89886916]
[1770838989996,2.36583453,80.104,80.07,12.89886916]
[1770838990315,2.36583453,80.104,80.071,12.48891608]
[1770838990480,2.36583453,80.104,80.08,12.89886916]
[1770838990682,0.2,80.11,80.08,12.89886916]
[1770838991104,15.04877842,80.11,80.081,12.48735655]
[1770838991301,2.36583453,80.109,80.058,48.38]
[1770838991504,2.36583453,80.109,80.053,1.42473347]
[1770838991505,2.36583453,80.099,80.06,12.89886916]
[1770838992298,2.36583453,80.097,80.07,12.89886916]
[1770838992698,2.36583453,80.097,80.06,12.89886916]
[1770838992890,2.36583453,80.095,80.07,12.89886916]
[1770838993098,57.1,80.096,80.071,12.48891608]
[1770838993710,57.1,80.096,80.08,12.89886916]
[1770838993904,69.58515003,80.096,80.071,12.48891608]
[1770838994110,71.95098456,80.096,80.071,12.48891608]
[1770838994420,71.95098456,80.096,80.05,48.38]
[1770838994421,2.36583453,80.095,80.05,1.42097437]
[1770838994586,2.36583453,80.095,80.049,31.23076707]
[1770838994587,57.12,80.102,80.08,12.89886916]
[1770838994786,57.12,80.102,80.09,12.89886916]
[1770838995000,0.2,80.12,80.09,12.89886916]
[1770838995197,13.17874946,80.14,80.121,0.79365347]